bitfinex/quotes_SOLUSD_20240621
["timestamp","ask_amount","ask_price","bid_price","bid_amount"]
[1718984996665,26.0806,131.57,131.52,6.2526]
[1718984996864,20.0,131.57,131.53,6.0822]
[1718984997243,4.91122234,131.61,131.54,0.17]
[1718984997441,17.9461461,131.62,131.55,6.081]
[1718984997442,6.0792,131.6,131.55,6.081]
[1718984997644,26.0795,131.59,131.54,0.17]
[1718984997957,20.0,131.59,131.54,0.17]
[1718984998279,6.0802,131.58,131.54,0.17]
[1718984998434,6.0802,131.58,131.53,6.2521]
[1718984999067,20.0,131.59,131.54,6.0815]
[1718984999068,26.0797,131.59,131.54,6.0815]
[1718984999268,20.0,131.59,131.55,6.0808]
[1718984999469,20.0,131.61,131.53,0.17]
[1718984999672,6.0793,131.6,131.55,6.0811]
[1718984999965,20.0,131.59,131.55,6.0811]
[1718985000167,20.0,131.59,131.55,6.0812]
[1718985000376,26.0795,131.59,131.54,6.2516]
[1718985000870,26.0795,131.59,131.54,6.0816]
[1718985001073,20.0,131.59,131.53,6.252]
[1718985001263,20.0,131.59,131.54,6.0817]
[1718985001264,6.0797,131.59,131.54,6.0817]
[1718985001463,0.8533461,131.62,131.58,6.0798]
[1718985001976,0.8533461,131.62,131.55,6.0809]
[1718985001977,20.8533461,131.62,131.55,6.0809]
[1718985002165,36.0494461,131.62,131.54,6.186]
[1718985002361,36.0494461,131.62,131.54,6.0814]
[1718985002575,6.0793,131.6,131.55,6.0813]
[1718985002863,6.0787,131.61,131.56,6.0808]
[1718985003061,20.8533461,131.62,131.57,6.0802]
[1718985003062,20.0,131.6,131.57,6.0802]
[1718985003247,20.8533461,131.62,131.57,6.0802]
[1718985003444,0.8533461,131.62,131.6,6.0789]
[1718985003751,0.8533461,131.62,131.61,6.0785]
[1718985003950,0.8533461,131.62,131.61,6.2485]
[1718985004173,0.8533461,131.62,131.61,6.4185]
[1718985004890,0.8533461,131.62,131.61,0.34]
[1718985005171,6.9317461,131.62,131.57,12.226]
[1718985005376,6.9317461,131.62,131.58,0.34]
[1718985005377,0.8533461,131.62,131.58,0.34]
[1718985005555,0.8533461,131.62,131.61,6.0785]
[1718985005875,0.8533461,131.62,131.55,15.9513]
[1718985006470,26.9314461,131.62,131.57,6.08]
[1718985006768,26.9314461,131.62,131.54,21.7742]
[1718985006769,6.0796,131.59,131.54,6.0815]
[1718985006986,6.0792,131.6,131.55,6.081]
[1718985007186,20.0,131.59,131.55,6.081]
[1718985008051,0.8533461,131.62,131.55,15.2028]
[1718985008245,0.8533461,131.62,131.58,6.0799]
[1718985008462,20.8533461,131.62,131.58,6.0799]
[1718985008672,0.8533461,131.62,131.59,6.0793]
[1718985008867,0.8533461,131.62,131.56,15.2013]
[1718985009180,0.8533461,131.62,131.61,21.2749]
[1718985009362,0.8533461,131.62,131.61,21.6149]
[1718985009562,0.8533461,131.62,131.61,6.4185]
[1718985011255,6.074,131.71,131.65,6.0764]
[1718985011454,15.1871,131.7,131.61,0.34]
[1718985011765,45.23401448,131.72,131.56,15.2012]
[1718985011961,6.0778,131.63,131.58,6.0799]
[1718985012172,11.4395,131.7,131.59,6.0791]
[1718985012377,11.4395,131.7,131.55,21.9561]
[1718985012560,6.0792,131.6,131.55,12.4024]
[1718985012760,40.6502,131.68,131.55,6.0811]
[1718985012761,15.1939,131.64,131.55,6.0811]
[1718985012960,20.0,131.63,131.54,6.0816]
[1718985013178,46.6344,131.63,131.55,6.081]
[1718985013356,31.4395,131.63,131.53,15.2051]
[1718985013763,6.0788,131.61,131.55,6.0811]
[1718985013985,20.0,131.6,131.55,6.0811]
[1718985014360,26.0791,131.6,131.55,6.0811]
[1718985014685,26.0791,131.6,131.51,21.3158]
[1718985014686,50.3959,131.6,131.48,6.6154]
[1718985014990,20.0,131.6,131.48,6.6154]
[1718985015284,6.0822,131.54,131.48,12.6998]
[1718985015590,6.0819,131.54,131.45,15.2147]
[1718985015776,0.17,131.59,131.49,6.084]
[1718985015965,6.0818,131.54,131.49,6.084]
[1718985016168,20.0,131.53,131.48,6.0844]
[1718985016391,20.0,131.53,131.51,6.0831]
[1718985016764,20.0,131.55,131.51,6.0831]
[1718985016966,20.0,131.55,131.45,15.2148]
[1718985017291,6.0825,131.53,131.47,6.0848]
[1718985017591,6.0829,131.52,131.47,6.0848]
[1718985018090,15.2035,131.55,131.47,6.0848]
[1718985018091,6.0823,131.53,131.47,6.0848]
[1718985018290,20.0,131.56,131.47,15.2125]
[1718985018472,20.0,131.57,131.49,6.0839]
[1718985018673,6.082,131.54,131.48,6.0844]
[1718985018980,20.0,131.53,131.48,6.0844]
[1718985019187,6.0814,131.55,131.47,15.2125]
[1718985019369,26.0818,131.54,131.49,6.084]
[1718985019777,20.0,131.54,131.49,6.084]
[1718985020297,20.0,131.54,131.5,6.0835]
[1718985020775,20.0,131.54,131.44,6.0318]
[1718985020975,6.0831,131.51,131.46,6.0854]
[1718985021288,6.0839,131.5,131.44,12.1178]
[1718985021499,26.0839,131.5,131.45,6.0859]
[1718985021880,6.085,131.48,131.42,6.0871]
[1718985022188,35.2102,131.5,131.42,6.0872]
[1718985022364,6.085,131.47,131.4,6.5334]
[1718985022570,6.0855,131.46,131.41,6.0875]
[1718985022782,6.0852,131.47,131.41,6.0875]
[1718985023507,6.0852,131.47,131.42,6.0873]
[1718985023669,6.0852,131.47,131.41,6.0877]
[1718985023872,34.2,131.52,131.41,15.2193]
[1718985023873,20.0,131.46,131.41,15.2193]
[1718985024193,20.0,131.46,131.45,6.0859]
[1718985024401,20.0,131.49,131.45,6.0859]
[1718985024875,20.0,131.49,131.45,6.0858]
[1718985025079,20.0,131.49,131.42,15.2173]
[1718985025296,20.0,131.49,131.43,0.34]
[1718985025503,6.0822,131.53,131.48,6.0845]
[1718985025714,6.2482,131.54,131.43,0.34]
[1718985026000,6.2482,131.54,131.46,6.0852]
[1718985026204,6.0832,131.51,131.45,6.0857]
[1718985026373,6.0834,131.51,131.46,6.0853]
[1718985026575,21.4536,131.54,131.43,15.5563]
[1718985026775,6.0827,131.52,131.47,6.0846]
[1718985027206,6.0827,131.52,131.43,15.3863]
[1718985027207,20.0,131.51,131.44,6.086]
[1718985027389,20.0,131.51,131.41,15.2194]
[1718985027390,20.0,131.52,131.45,6.0857]
[1718985027571,6.0838,131.5,131.45,6.0857]
[1718985027776,20.0,131.52,131.42,6.0869]
[1718985027777,6.0848,131.48,131.42,6.0869]
[1718985028109,6.0855,131.46,131.41,6.0875]
[1718985028480,6.0852,131.47,131.41,6.0875]
[1718985028682,20.0,131.46,131.41,6.0875]
[1718985029275,20.0,131.46,131.42,6.0872]
[1718985029681,26.0856,131.46,131.41,6.0876]
[1718985030082,20.0,131.46,131.45,6.0859]
[1718985030296,36.6592,131.54,131.39,16.5737]
[1718985030596,6.0853,131.47,131.39,16.5737]
[1718985030783,6.0847,131.48,131.42,6.0872]
[1718985030982,20.0,131.47,131.42,6.0872]
[1718985031298,20.0,131.47,131.42,6.0871]
[1718985031503,26.085,131.47,131.42,6.0872]
[1718985031803,26.085,131.47,131.36,6.0302]
[1718985031804,6.0869,131.43,131.36,6.0302]
[1718985031977,41.4018,131.47,131.36,6.0302]
[1718985031978,0.17,131.46,131.36,6.0302]
[1718985032314,15.2171,131.44,131.36,6.0302]
[1718985032516,6.0874,131.42,131.36,6.0302]
[1718985032800,6.0874,131.42,131.37,6.0895]
[1718985032974,6.0873,131.42,131.37,6.0895]
[1718985033177,6.0862,131.45,131.4,6.088]
[1718985033398,6.0862,131.45,131.36,6.0302]
[1718985033399,20.0,131.44,131.37,15.2232]
[1718985033590,20.0,131.44,131.39,6.0884]
[1718985033786,6.0869,131.43,131.38,6.089]
[1718985033973,6.0869,131.43,131.36,6.0302]
[1718985033974,6.0869,131.43,131.37,6.0894]
[1718985034177,20.0,131.44,131.37,6.0894]
[1718985034380,20.17,131.45,131.36,6.0302]
[1718985034680,20.17,131.45,131.28,9.979991]
[1718985034681,6.0887,131.39,131.34,6.0907]
[1718985034885,26.0892,131.38,131.33,6.0914]
[1718985035103,26.0892,131.38,131.32,6.0917]
[1718985035299,6.0898,131.37,131.32,6.0917]
[1718985035506,26.0894,131.38,131.33,6.0914]
[1718985035801,20.0,131.38,131.34,6.091]
[1718985035999,26.0892,131.38,131.33,6.0913]
[1718985036201,20.0,131.38,131.29,7.3467461]
[1718985036382,20.0,131.38,131.35,6.0901]
[1718985036582,20.0,131.38,131.32,15.2291]
[1718985036788,20.0,131.38,131.33,6.0913]
[1718985037122,20.0,131.38,131.32,15.2291]
[1718985037123,26.0895,131.38,131.32,6.0918]
[1718985037289,26.0895,131.38,131.33,6.0913]
[1718985037804,20.0,131.38,131.34,6.0908]
[1718985037989,20.0,131.38,131.31,15.2303]
[1718985038301,20.0,131.38,131.34,6.0908]
[1718985039403,26.0893,131.38,131.33,6.0912]
[1718985039610,20.0,131.38,131.34,6.0908]
[1718985040806,20.0,131.38,131.35,6.0904]
[1718985041015,20.0,131.38,131.31,15.2303]
[1718985041218,26.0892,131.38,131.33,6.0912]
[1718985041389,20.0,131.38,131.29,22.5798461]
[1718985041716,20.0,131.38,131.32,6.0918]
[1718985041717,6.0897,131.37,131.32,6.0918]
[1718985041883,20.0,131.36,131.32,6.0918]
[1718985043082,20.0,131.36,131.33,6.0914]
[1718985043286,20.0,131.37,131.33,6.0914]
[1718985044090,20.0,131.37,131.29,0.8533461]
[1718985044302,20.0,131.38,131.35,6.0902]
[1718985044507,20.0,131.38,131.34,6.0908]
[1718985045097,20.0,131.38,131.35,6.0905]
[1718985045414,20.0,131.38,131.3,0.34]
[1718985045415,20.0,131.38,131.36,6.0901]
[1718985046004,12.5546,131.42,131.37,6.0894]
[1718985046206,12.5546,131.42,131.34,15.2267]
[1718985046207,20.0,131.41,131.34,15.2267]
[1718985046513,6.0883,131.4,131.35,6.2603]
[1718985046717,20.0,131.41,131.35,0.17]
[1718985046921,20.0,131.41,131.38,6.0888]
[1718985047099,20.0,131.41,131.29,7.2755461]
[1718985047416,6.0891,131.39,131.34,6.0909]
[1718985047588,6.0885,131.4,131.31,15.2302]
[1718985047793,20.0,131.39,131.35,6.0905]
[1718985048413,20.0,131.39,131.31,15.2302]
[1718985048717,6.0886,131.4,131.35,6.0905]
[1718985048901,20.0,131.39,131.35,6.0905]
[1718985050012,20.0,131.39,131.34,6.091]
[1718985050210,6.0891,131.39,131.34,6.091]
[1718985050424,6.0896,131.37,131.32,6.0917]
[1718985051004,6.0889,131.39,131.34,6.091]
[1718985051423,6.0889,131.39,131.29,7.2755461]
[1718985051424,20.0,131.41,131.37,6.0894]
[1718985051603,20.0,131.41,131.34,15.2266]
[1718985051796,20.0,131.41,131.37,6.0894]
[1718985051797,26.0878,131.41,131.37,6.0894]
[1718985052126,26.0878,131.41,131.34,15.2266]
[1718985052127,20.0,131.41,131.34,15.2266]
[1718985052286,6.0882,131.4,131.35,6.0903]
[1718985052593,6.0882,131.4,131.35,6.0905]
[1718985052594,20.0,131.39,131.35,6.0905]
[1718985053302,20.0,131.39,131.35,6.0904]
[1718985053699,20.0,131.39,131.29,7.2755461]
[1718985053907,15.2273,131.35,131.29,0.8533461]
[1718985054217,15.2273,131.35,131.3,6.0928]
[1718985054218,6.0908,131.35,131.3,6.0928]
[1718985054520,33.112,131.34,131.29,0.8533461]
[1718985054690,6.0926,131.31,131.29,0.8533461]
[1718985055108,6.0921,131.32,131.29,0.8533461]
[1718985055308,20.0,131.31,131.29,0.8533461]
[1718985055812,6.0917,131.33,131.29,0.8533461]
[1718985056011,26.0917,131.33,131.29,0.8533461]
[1718985056208,6.092,131.32,131.29,0.8533461]
[1718985056603,20.0,131.33,131.29,0.8533461]
[1718985056912,6.0929,131.3,131.29,0.8533461]
[1718985057119,26.0929,131.3,131.29,0.8533461]
[1718985057413,20.0,131.3,131.29,0.8533461]
[1718985058285,255.1,131.38,131.29,0.8533461]
[1718985058486,26.3843,131.37,131.29,0.8533461]
[1718985058893,26.3843,131.37,131.29,6.9464461]
[1718985059494,6.0908,131.35,131.29,6.9464461]
[1718985059721,20.0,131.34,131.3,6.0929]
[1718985060093,6.5242,131.4,131.31,0.17]
[1718985060297,20.0,131.39,131.36,6.0898]
[1718985060493,6.0887,131.39,131.31,0.17]
[1718985060793,6.5242,131.4,131.3,6.0927]
[1718985061200,6.0923,131.32,131.29,0.8533461]
[1718985061407,255.1,131.39,131.29,0.8533461]
[1718985061719,0.17,131.38,131.29,0.8533461]
[1718985061910,11.4395,131.37,131.29,0.8533461]
[1718985062111,6.0929,131.3,131.29,0.8533461]
[1718985062430,26.0929,131.3,131.29,0.8533461]
[1718985062594,41.3251,131.3,131.29,0.8533461]
[1718985063027,26.0929,131.3,131.29,0.8533461]
[1718985063707,71.4329,131.3,131.29,0.8533461]
[1718985064207,71.2629,131.3,131.29,0.8533461]
[1718985064409,71.2629,131.3,131.2,6.5472]
[1718985064410,6.095,131.26,131.2,6.5472]
[1718985064606,6.095,131.26,131.2,6.0974]
[1718985064607,6.0948,131.26,131.2,6.0974]
[1718985064807,20.0,131.25,131.22,6.0963]
[1718985065526,20.0,131.26,131.21,6.0969]
[1718985065701,20.0,131.26,131.22,6.0965]
[1718985066831,20.0,131.26,131.23,6.096]
[1718985067125,20.0,131.27,131.23,6.096]
[1718985067308,20.0,131.27,131.24,6.0955]
[1718985067516,26.0936,131.29,131.24,6.0955]
[1718985067826,26.0936,131.29,131.2,15.2437]
[1718985067827,6.094,131.28,131.22,6.0963]
[1718985068029,20.0,131.27,131.21,6.0969]
[1718985068324,35.2336,131.29,131.21,6.0969]
[1718985068534,35.2336,131.29,131.18,15.2459]
[1718985068535,6.0948,131.26,131.18,15.2459]
[1718985068829,20.0,131.25,131.21,6.0967]
[1718985069408,20.0,131.25,131.2,15.2438]
[1718985069729,6.0945,131.27,131.19,45.34]
[1718985069911,20.0,131.26,131.22,6.0966]
[1718985070110,26.0948,131.26,131.21,6.097]
[1718985070518,26.0948,131.26,131.22,6.0963]
[1718985070519,20.0,131.26,131.22,6.0963]
[1718985070721,20.0,131.27,131.19,30.8283]
[1718985070910,20.0,131.28,131.26,6.0947]
[1718985071116,20.0,131.3,131.27,6.094]
[1718985071428,6.5986,131.33,131.26,6.0946]
[1718985071429,6.0925,131.31,131.26,6.0946]
[1718985071611,6.5986,131.33,131.21,6.5204]
[1718985071819,6.0924,131.31,131.26,6.0945]
[1718985072447,11.24395807,131.34,131.26,15.2365]
[1718985072732,6.0909,131.35,131.27,0.34]
[1718985073022,20.0,131.34,131.3,6.0926]
[1718985073531,6.0922,131.32,131.26,6.0944]
[1718985073703,6.0922,131.32,131.25,0.17]
[1718985073909,20.0,131.31,131.26,6.0945]
[1718985074210,20.0,131.31,131.25,0.34]
[1718985074414,20.0,131.34,131.25,45.34]
[1718985074612,6.092,131.32,131.27,6.094]
[1718985074829,20.0,131.31,131.27,6.094]
[1718985075201,20.0,131.31,131.28,6.0937]
[1718985075424,20.0,131.32,131.23,15.2401]
[1718985075606,6.092,131.32,131.27,6.094]
[1718985075806,20.0,131.31,131.27,6.094]
[1718985076027,26.0927,131.31,131.26,6.0946]
[1718985076229,26.0927,131.31,131.23,15.2401]
[1718985076230,26.0927,131.31,131.25,6.095]
[1718985076427,6.0929,131.3,131.25,6.095]
[1718985076638,6.0929,131.3,131.24,6.0954]
[1718985076927,20.0,131.31,131.23,15.2401]
[1718985077127,20.0,131.31,131.22,15.5366]
[1718985077371,6.0933,131.3,131.25,6.0949]
[1718985077635,6.0916,131.33,131.28,6.0935]
[1718985077829,20.0,131.32,131.28,6.0935]
[1718985078029,26.092,131.32,131.27,6.0941]
[1718985078216,20.0,131.32,131.22,15.5366]
[1718985078407,20.0,131.32,131.19,15.2441]
[1718985078408,6.0947,131.26,131.21,12.6173]
[1718985078607,15.2333,131.3,131.19,15.2441]
[1718985078822,6.0947,131.26,131.21,6.0968]
[1718985079016,26.0954,131.25,131.2,6.0975]
[1718985079211,6.1038,131.28,131.21,15.2417]
[1718985079427,26.0945,131.27,131.22,6.0964]
[1718985079741,20.0,131.27,131.18,22.2558]
[1718985080040,20.0,131.27,131.21,6.0968]
[1718985080041,6.095,131.26,131.21,6.0968]
[1718985080332,20.0,131.27,131.18,22.2558]
[1718985080537,20.0,131.27,131.24,6.0955]
[1718985080833,11.4395,131.31,131.2,15.2438]
[1718985080834,20.0,131.28,131.2,15.2438]
[1718985081135,11.4395,131.31,131.2,15.2438]
[1718985081136,6.0951,131.26,131.2,6.0973]
[1718985081437,6.0952,131.25,131.2,6.0973]
[1718985081822,6.0949,131.26,131.21,6.097]
[1718985082619,6.0945,131.27,131.22,6.0966]
[1718985082842,6.094,131.28,131.23,6.0961]
[1718985083018,20.0,131.27,131.23,6.0961]
[1718985083334,20.0,131.27,131.2,15.2428]
[1718985083711,6.0944,131.27,131.22,6.0963]
[1718985084114,6.0954,131.25,131.2,6.0973]
[1718985084637,6.0962,131.23,131.18,6.0982]
[1718985084812,6.0969,131.22,131.16,0.8533461]
[1718985085139,15.407,131.26,131.18,6.0982]
[1718985085317,6.0963,131.23,131.18,6.0982]
[1718985085519,71.2654,131.25,131.19,6.0978]
[1718985085731,71.2654,131.25,131.2,6.0975]
[1718985086130,71.0954,131.25,131.2,6.0975]
[1718985086335,20.0,131.25,131.21,6.0968]
[1718985086636,20.17,131.26,131.16,31.3487461]
[1718985086822,65.0,131.25,131.19,6.0977]
[1718985087026,45.0,131.25,131.2,6.0975]
[1718985087321,20.0,131.24,131.2,6.0973]
[1718985087534,20.0,131.24,131.21,6.0969]
[1718985087922,20.0,131.25,131.21,6.0969]
[1718985088154,26.0952,131.25,131.2,6.0974]
[1718985088455,20.0,131.25,131.16,0.8533461]
[1718985088650,6.0961,131.23,131.18,6.0982]
[1718985088860,26.0967,131.22,131.17,6.0988]
[1718985089022,20.0,131.22,131.18,6.0983]
[1718985089223,21.88,131.29,131.16,0.8533461]
[1718985089428,6.0968,131.22,131.17,6.0986]
[1718985089652,6.0963,131.23,131.18,6.0984]
[1718985090056,26.0968,131.22,131.17,6.0987]
[1718985090233,26.0966,131.22,131.17,6.0987]
[1718985090441,26.0966,131.22,131.16,6.9525461]
[1718985090956,26.0966,131.22,131.17,6.0987]
[1718985091625,20.0,131.22,131.16,0.8533461]
[1718985091830,260.12292072,131.27,131.16,16.1017461]
[1718985091831,6.0965,131.23,131.16,16.1017461]
[1718985092053,20.0,131.22,131.18,6.0981]
[1718985092249,20.0,131.22,131.16,16.1017461]
[1718985092250,20.0,131.22,131.19,6.0979]
[1718985092449,20.0,131.22,131.18,6.0982]
[1718985092655,20.0,131.23,131.18,6.0982]
[1718985092858,26.0962,131.23,131.18,6.0982]
[1718985093434,20.0,131.23,131.16,16.1017461]
[1718985093641,6.0956,131.25,131.2,6.0972]
[1718985093951,20.0,131.24,131.2,6.0972]
[1718985094339,26.0957,131.24,131.19,6.0978]
[1718985095356,6.0967,131.22,131.17,6.0988]
[1718985095541,20.0,131.24,131.16,0.8533461]
[1718985095542,20.0,131.21,131.16,0.8533461]
[1718985095743,6.0972,131.21,131.16,6.9526461]
[1718985096060,20.0,131.2,131.17,6.0989]
[1718985096357,26.0971,131.21,131.16,6.9525461]
[1718985096550,6.0971,131.21,131.16,6.9525461]
[1718985096750,20.0,131.2,131.16,6.9525461]
[1718985097254,26.0976,131.2,131.16,0.8533461]
[1718985097460,20.0,131.2,131.16,0.8533461]
[1718985097663,6.0974,131.21,131.16,6.9526461]
[1718985097847,20.0,131.2,131.16,6.9526461]
[1718985098246,20.0,131.2,131.16,0.8533461]
[1718985098436,6.0989,131.17,131.12,6.1009]
[1718985098760,20.0,131.2,131.11,6.397]
[1718985099263,45.0,131.19,131.11,21.6504]
[1718985099458,20.0,131.18,131.14,6.1001]
[1718985099637,26.0987,131.18,131.13,6.1008]
[1718985099838,20.0,131.18,131.14,6.1003]
[1718985100041,20.0,131.18,131.11,21.6504]
[1718985100042,26.0986,131.18,131.13,6.1006]
[1718985100236,5.05078547,131.22,131.11,6.397]
[1718985100451,11.4395,131.24,131.12,30.5043]
[1718985100654,26.0964,131.23,131.18,6.098]
[1718985100963,20.0,131.23,131.19,6.0977]
[1718985101170,20.0,131.23,131.11,6.397]
[1718985101348,11.4395,131.24,131.15,30.4986]
[1718985101547,17.5352,131.24,131.19,6.0977]
[1718985102063,11.4395,131.24,131.13,15.251]
[1718985102244,6.0975,131.21,131.13,15.251]
[1718985102466,11.4395,131.24,131.12,30.5056]
[1718985102669,6.0966,131.22,131.12,30.5056]
[1718985103193,45.34,131.23,131.17,6.0985]
[1718985103368,20.0,131.22,131.18,6.0982]
[1718985103899,20.0,131.23,131.19,6.0979]
[1718985104202,20.0,131.23,131.12,30.5056]
[1718985104367,20.0,131.23,131.19,6.0977]
[1718985104567,20.0,131.23,131.2,6.0974]
[1718985104878,20.0,131.26,131.18,6.017]
[1718985105077,26.095,131.26,131.21,6.0969]
[1718985105279,18.0656,131.28,131.22,6.0962]
[1718985105575,18.0656,131.28,131.22,6.0964]
[1718985105782,6.0944,131.27,131.22,6.0964]
[1718985106594,20.0,131.26,131.21,6.097]
[1718985106796,20.0,131.26,131.17,15.1776]
[1718985106974,20.0,131.27,131.26,6.0947]
[1718985107175,6.6261,131.28,131.18,0.34]
[1718985107366,6.0944,131.27,131.21,6.0969]
[1718985107687,6.0958,131.24,131.18,45.34]
[1718985107890,6.0949,131.26,131.18,45.34]
[1718985108095,6.0944,131.27,131.18,45.34]
[1718985108293,6.6261,131.28,131.17,30.4248]
[1718985108590,26.0949,131.26,131.2,6.0972]
[1718985108787,6.0956,131.25,131.19,6.0979]
[1718985108987,20.0,131.24,131.17,15.1776]
[1718985109180,0.34,131.25,131.17,15.1776]
[1718985109374,45.34,131.25,131.17,15.1776]
[1718985109797,20.0,131.24,131.17,15.1776]
[1718985110294,51.0965,131.23,131.13,15.2383]
[1718985110593,6.0974,131.21,131.15,6.0996]
[1718985110782,20.0,131.2,131.15,6.0996]
[1718985110986,26.098,131.2,131.14,6.1003]
[1718985111497,20.0,131.2,131.16,6.0994]
[1718985111907,26.0967,131.22,131.16,6.0994]
[1718985112271,6.0971,131.21,131.16,6.0994]
[1718985112493,20.0,131.2,131.16,6.0994]
[1718985112773,20.0,131.2,131.17,6.0986]
[1718985112988,20.0,131.2,131.18,6.0984]
[1718985113183,26.0968,131.22,131.16,6.0993]
[1718985113392,20.0,131.21,131.17,6.0988]
[1718985113575,6.2663,131.23,131.17,6.0988]
[1718985113770,20.0,131.22,131.18,6.0984]
[1718985114283,20.0,131.22,131.2,6.0972]
[1718985114475,20.0,131.23,131.2,6.0972]
[1718985114798,20.0,131.24,131.2,6.0972]
[1718985115587,20.0,131.24,131.13,145.7404]
[1718985115795,20.0,131.26,131.22,6.0963]
[1718985115975,12.7201,131.28,131.19,15.2448]
[1718985116292,12.7201,131.28,131.2,45.34]
[1718985116681,12.7201,131.28,131.22,6.0963]
[1718985117201,6.0937,131.29,131.21,22.8133]
[1718985117509,20.0,131.28,131.24,6.0954]
[1718985117712,20.0,131.28,131.25,6.0951]
[1718985117908,6.0931,131.3,131.21,22.8133]
[1718985117909,20.0,131.29,131.21,22.8133]
[1718985118117,20.0,131.29,131.28,6.0938]
[1718985118408,20.0,131.29,131.22,46.85929008]
[1718985118409,6.0938,131.28,131.23,6.0961]
[1718985118813,20.0,131.29,131.16,22.5986]
[1718985118814,6.0966,131.23,131.16,22.5986]
[1718985118992,20.0,131.27,131.16,22.5986]
[1718985118993,6.0953,131.25,131.16,22.5986]
[1718985119188,35.2364,131.27,131.19,6.0978]
[1718985119189,6.0958,131.24,131.19,6.0978]
[1718985119407,35.2364,131.27,131.19,6.0978]
[1718985119408,6.0954,131.25,131.19,6.0978]
[1718985119609,6.0954,131.25,131.2,6.0975]
[1718985119918,6.0965,131.23,131.16,22.5986]
[1718985120116,20.0,131.22,131.18,6.0981]
[1718985120299,20.0,131.22,131.17,6.0988]
[1718985120619,20.0,131.22,131.16,22.5986]
[1718985120815,20.0,131.22,131.18,6.0982]
[1718985121397,20.0,131.22,131.2,6.0975]
[1718985121597,20.0,131.24,131.16,37.8461]
[1718985121792,6.0957,131.24,131.19,6.0976]
[1718985122001,20.0,131.23,131.19,6.0976]
[1718985122235,20.0,131.23,131.12,22.1339]
[1718985122513,6.0968,131.22,131.17,6.0988]
[1718985122720,20.0,131.23,131.12,22.1339]
[1718985122721,20.0,131.21,131.12,22.1339]
[1718985122901,6.098,131.19,131.14,6.1002]
[1718985123105,11.6095,131.2,131.09,15.256]
[1718985123414,6.0997,131.16,131.11,6.1015]
[1718985123616,6.0991,131.17,131.09,15.256]
[1718985123923,20.0,131.16,131.12,6.1011]
[1718985124422,26.0995,131.16,131.11,6.1017]
[1718985124811,20.0,131.16,131.08,22.1705]
[1718985125108,6.1001,131.15,131.1,6.1019]
[1718985125311,20.0,131.14,131.11,6.1016]
[1718985125722,20.0,131.14,131.08,37.4283]
[1718985125896,6.0999,131.15,131.1,6.1021]
[1718985126313,20.0,131.14,131.09,6.1024]
[1718985126518,6.1009,131.13,131.08,6.103]
[1718985126697,20.0,131.12,131.08,6.103]
[1718985127407,20.0,131.12,131.07,6.1033]
[1718985127601,20.0,131.12,131.04,22.1705]
[1718985127602,20.0,131.12,131.08,6.103]
[1718985127805,20.0,131.15,131.08,6.103]
[1718985128007,6.1008,131.13,131.08,6.103]
[1718985128312,20.0,131.12,131.09,6.1026]